fUSD/lending_fUSD_20250904
["ID","MTS","AMOUNT","RATE_DAILY","PERIOD"]
[383602762,1757022666632,-540.0,0.00026168,2]
[383602763,1757022666642,-400.0,0.00026168,2]
[383602764,1757022666652,-400.0,0.00026168,2]
[383602765,1757022666661,-400.0,0.00026168,2]
[383602766,1757022666671,-400.0,0.00026168,2]
[383602767,1757022666680,-400.0,0.00026168,2]
[383602768,1757022666690,-400.0,0.00026168,2]
[383602769,1757022666699,-446.6,0.00026168,2]
[383602770,1757022666709,-400.0,0.00026168,2]
[383602771,1757022666718,-400.0,0.00026168,2]
[383602772,1757022666727,-305.06884126,0.00026168,2]
[383602773,1757022666737,-400.0,0.00026168,2]
[383602774,1757022666746,-400.0,0.00026168,2]
[383602775,1757022666755,-400.0,0.00026168,2]
[383602776,1757022666765,-400.0,0.00026168,2]
[383602777,1757022666774,-400.0,0.00026168,2]
[383602778,1757022666783,-400.0,0.00026168,2]
[383602779,1757022666793,-400.0,0.00026168,2]
[383602780,1757022666802,-288.76,0.00026168,2]
[383602781,1757022666811,-517.22,0.00026168,2]
[383602782,1757022666821,-400.0,0.00026168,2]
[383602783,1757022666839,-400.0,0.00026168,2]
[383602784,1757022666850,-400.0,0.00026168,2]
[383602785,1757022666860,-168.0,0.00026178,2]
[383602786,1757022666870,-168.0,0.0002618,2]
[383602787,1757022666880,-505.79900222,0.00026194,2]
[383602788,1757022666889,-442.60339212,0.00026194,2]
[383602789,1757022666899,-400.0,0.00026194,2]
[383602790,1757022666909,-400.0,0.00026194,2]
[383602791,1757022666919,-400.0,0.00026194,2]
[383602792,1757022666930,-400.0,0.00026194,2]
[383602793,1757022666940,-400.0,0.00026194,2]
[383602794,1757022666950,-400.0,0.00026194,2]
[383602795,1757022666959,-400.0,0.00026194,2]
[383602796,1757022666968,-400.0,0.00026194,2]
[383602797,1757022666978,-400.0,0.00026194,2]
[383602798,1757022666988,-400.0,0.00026194,2]
[383602799,1757022666998,-400.0,0.00026194,2]
[383602800,1757022667009,-400.0,0.00026194,2]
[383602801,1757022667020,-400.0,0.00026194,2]
[383602802,1757022667029,-400.0,0.00026194,2]
[383602803,1757022667039,-400.0,0.00026194,2]
[383602804,1757022667050,-400.0,0.00026194,2]
[383602805,1757022667060,-400.0,0.00026194,2]
[383602806,1757022667069,-400.0,0.00026194,2]
[383602807,1757022667079,-400.0,0.00026194,2]
[383602808,1757022667089,-400.0,0.00026194,2]
[383602809,1757022667099,-400.0,0.00026194,2]
[383602810,1757022667115,-400.0,0.00026194,2]
[383602811,1757022667124,-400.0,0.00026194,2]
[383602812,1757022667134,-400.0,0.00026194,2]
[383602813,1757022667145,-400.0,0.00026194,2]
[383602814,1757022667154,-400.0,0.00026194,2]
[383602815,1757022667164,-400.0,0.00026194,2]
[383602816,1757022667173,-400.0,0.00026194,2]
[383602817,1757022667182,-400.0,0.00026194,2]
[383602818,1757022667192,-400.0,0.00026194,2]
[383602819,1757022667202,-400.0,0.00026194,2]
[383602820,1757022667212,-400.0,0.00026194,2]
[383602821,1757022667222,-400.0,0.00026194,2]
[383602822,1757022667231,-400.0,0.00026194,2]
[383602823,1757022667245,-400.0,0.00026194,2]
[383602824,1757022667254,-400.0,0.00026194,2]
[383602825,1757022667264,-400.0,0.00026194,2]
[383602826,1757022667274,-400.0,0.00026194,2]
[383602827,1757022667284,-400.0,0.00026194,2]
[383602828,1757022667294,-999.99,0.00026194,2]
[383602829,1757022667303,-400.63856,0.00026194,2]
[383602830,1757022667313,-400.0,0.00026194,2]
[383602831,1757022667324,-400.0,0.00026194,2]
[383602832,1757022667334,-400.0,0.00026194,2]
[383602833,1757022667343,-400.0,0.00026194,2]
[383602834,1757022667353,-458.72,0.00026194,2]
[383602835,1757022667363,-400.0,0.00026194,2]
[383602836,1757022667374,-400.0,0.00026194,2]
[383602837,1757022667384,-400.0,0.00026194,2]
[383602838,1757022667393,-480.45007795,0.00026194,2]
[383602839,1757022667403,-400.0,0.00026194,2]
[383602840,1757022667412,-400.0,0.00026194,2]
[383602841,1757022667422,-400.0,0.00026194,2]
[383602842,1757022667435,-400.0,0.00026194,2]
[383602843,1757022667446,-400.0,0.00026194,2]
[383602844,1757022667457,-467.56,0.00026194,2]
[383602845,1757022667467,-400.0,0.00026194,2]
[383602846,1757022667481,-400.0,0.00026194,2]
[383602847,1757022667491,-400.0,0.00026194,2]
[383602848,1757022667503,-400.0,0.00026194,2]
[383602849,1757022667513,-449.52,0.00026194,2]
[383602850,1757022667523,-400.0,0.00026194,2]
[383602851,1757022667534,-400.0,0.00026194,2]
[383602852,1757022667546,-539.08,0.00026194,2]
[383602853,1757022667556,-400.0,0.00026194,2]
[383602854,1757022667566,-156.54035492,0.00026219,2]
[383602855,1757022667576,-168.0,0.00026231,2]
[383602856,1757022667586,-150.0,0.00026256,2]
[383602857,1757022667596,-150.0,0.00026256,2]
[383602858,1757022667606,-500.0,0.00026256,2]
[383602859,1757022667616,-150.0,0.00026256,2]
[383602860,1757022667628,-500.0,0.00026256,2]
[383602861,1757022667639,-150.0,0.00026256,2]
[383602862,1757022667650,-150.0,0.00026256,2]
[383602863,1757022667660,-498.71606905,0.00026256,2]
[383602865,1757022787269,154.92,0.00013699,2]
[383602866,1757022796137,2000.0,0.00026256,120]
[383602867,1757022811680,155.95,0.00012391,2]
[383602868,1757022811902,155.95,0.00013939,2]
[383602869,1757022812180,155.95,0.00015488,2]
[383602870,1757022812399,155.95,0.00017037,2]
[383602871,1757022812625,155.95,0.00018586,2]
[383602879,1757023224947,700.0,0.0002,2]
[383602880,1757023224972,700.0,0.0002,2]
[383602881,1757023224999,100.0,0.0002,2]
[383602883,1757023328244,600.0,7.945e-05,2]
[383602884,1757023328271,275.883877,7.945e-05,2]
[383602886,1757023533079,250.0,0.00015,2]
[383602887,1757023534161,174.116123,0.00017,2]
[383602888,1757023534187,125.883877,0.00017,2]
[383602891,1757023675849,155.05,0.00013699,2]
[383602892,1757023739119,162.33,0.00011907,2]
[383602893,1757023739364,162.33,0.00013098,2]
[383602894,1757023739563,162.33,0.00014289,2]
[383602895,1757023739840,162.33,0.00015479,2]
[383602896,1757023740197,162.33,0.0001667,2]
[383602897,1757023740438,162.33,0.00017861,2]
[383602898,1757023740637,162.33,0.00019051,2]
[383602903,1757023832116,-162.33,0.00020242,2]
[383602904,1757023832126,-162.33,0.00021433,2]
[383602905,1757023832137,-348.7,0.000221,2]
[383602906,1757023832148,-162.33,0.00022623,2]
[383602907,1757023832160,-150.54,0.00023332,2]
[383602908,1757023832171,-162.33,0.00023814,2]
[383602909,1757023832182,-161.58,0.00023867,2]
[383602910,1757023832193,-160.0,0.00023923,7]
[383602911,1757023832205,-300.0,0.00023935,2]
[383602912,1757023832218,-348.7,0.00024,2]
[383602913,1757023832232,-226.14,0.00024084,2]
[383602914,1757023832245,-550.64,0.00024096,2]
[383602915,1757023832257,-413.0,0.000244,2]
[383602916,1757023832272,-174.33,0.00024574,2]
[383602917,1757023832284,-169.73,0.00024658,2]
[383602918,1757023832297,-670.58624095,0.00024661,2]
[383602919,1757023832308,-322.6107,0.00024661,2]
[383602920,1757023832320,-257.91778498,0.00024661,2]
[383602921,1757023832332,-500.0,0.00024673,2]
[383602922,1757023832343,-155.548,0.00024675,2]
[383602923,1757023832354,-300.0,0.00024675,2]
[383602924,1757023832364,-400.0,0.00024676,2]
[383602925,1757023832374,-400.0,0.00024676,2]
[383602927,1757023832386,-400.0,0.00024676,2]
[383602929,1757023832397,-400.0,0.00024676,2]
[383602931,1757023832408,-400.0,0.00024676,2]
[383602934,1757023832421,-403.06443545,0.00024676,2]
[383602936,1757023832432,-400.0,0.00024676,2]
[383602938,1757023832443,-400.0,0.00024676,2]
[383602940,1757023832455,-400.0,0.00024676,2]
[383602941,1757023832473,-400.0,0.00024676,2]
[383602942,1757023832489,-400.0,0.00024676,2]
[383602943,1757023832500,-400.0,0.00024676,2]
[383602945,1757023832510,-400.0,0.00024676,2]
[383602947,1757023832521,-400.0,0.00024676,2]
[383602949,1757023832532,-400.0,0.00024676,2]
[383602952,1757023832544,-267.55,0.00024676,2]
[383602954,1757023832555,-400.0,0.00024676,2]
[383602956,1757023832566,-400.0,0.00024676,2]
[383602958,1757023832578,-261.36,0.00024676,2]
[383602960,1757023832588,-400.0,0.00024676,2]
[383602962,1757023832600,-400.0,0.00024676,2]
[383602965,1757023832612,-400.0,0.00024676,2]
[383602967,1757023832622,-400.0,0.00024676,2]
[383602969,1757023832633,-467.7,0.00024676,2]
[383602971,1757023832644,-240.76,0.00024676,2]
[383602973,1757023832655,-400.0,0.00024676,2]
[383602975,1757023832665,-400.0,0.00024676,2]
[383602977,1757023832677,-400.0,0.00024676,2]
[383602980,1757023832688,-400.0,0.00024676,2]
[383602982,1757023832698,-400.0,0.00024676,2]
[383602984,1757023832710,-400.0,0.00024676,2]
[383602986,1757023832720,-412.16444637,0.00024676,2]
[383602988,1757023832731,-400.0,0.00024676,2]
[383602990,1757023832742,-400.0,0.00024676,2]
[383602993,1757023832754,-400.0,0.00024676,2]
[383602995,1757023832765,-523.14,0.00024676,2]
[383602997,1757023832776,-400.0,0.00024676,2]
[383602999,1757023832787,-369.45496145,0.00024676,2]
[383603001,1757023832797,-400.0,0.00024676,2]
[383603004,1757023832808,-170.56,0.00024676,2]
[383603006,1757023832818,-400.0,0.00024676,2]
[383603008,1757023832829,-314.27835563,0.00024676,2]
[383603010,1757023832840,-253.72,0.00024676,2]
[383603012,1757023832850,-454.52856524,0.00024676,2]
[383603014,1757023832859,-400.0,0.00024676,2]
[383603016,1757023832869,-400.0,0.00024676,2]
[383603018,1757023832878,-400.0,0.00024676,2]
[383603020,1757023832890,-400.0,0.00024676,2]
[383603023,1757023832900,-547.72,0.00024676,2]
[383603025,1757023832910,-400.0,0.00024676,2]
[383603027,1757023832921,-175.21238875,0.00024676,2]
[383603029,1757023832933,-400.0,0.00024676,2]
[383603031,1757023832945,-400.0,0.00024676,2]
[383603034,1757023832956,-400.0,0.00024676,2]
[383603036,1757023832966,-400.0,0.00024676,2]
[383603038,1757023832976,-400.0,0.00024676,2]
[383603040,1757023832986,-400.0,0.00024676,2]
[383603042,1757023832996,-471.72,0.00024676,2]
[383603044,1757023833006,-400.0,0.00024676,2]
[383603046,1757023833016,-400.0,0.00024676,2]
[383603048,1757023833026,-500.0,0.00024676,2]
[383603050,1757023833037,-400.0,0.00024676,2]
[383603052,1757023833049,-400.0,0.00024676,2]
[383603054,1757023833061,-400.0,0.00024676,2]
[383603056,1757023833073,-224.28,0.00024676,2]
[383603059,1757023833084,-400.0,0.00024676,2]
[383603061,1757023833095,-400.0,0.00024676,2]
[383603063,1757023833105,-400.0,0.00024676,2]
[383603065,1757023833115,-320.02,0.00024676,2]
[383603067,1757023833126,-400.0,0.00024676,2]
[383603069,1757023833136,-400.0,0.00024676,2]
[383603071,1757023833147,-400.0,0.00024676,2]
[383603074,1757023833159,-400.0,0.00024676,2]
[383603076,1757023833170,-400.0,0.00024676,2]
[383603078,1757023833181,-345.04,0.00024676,2]
[383603080,1757023833191,-446.97,0.00024676,2]
[383603082,1757023833202,-400.0,0.00024676,2]
[383603084,1757023833212,-400.0,0.00024676,2]
[383603086,1757023833223,-400.0,0.00024676,2]
[383603088,1757023833234,-412.0940253,0.00024676,2]
[383603091,1757023833247,-400.0,0.00024676,2]
[383603093,1757023833257,-400.0,0.00024676,2]
[383603095,1757023833269,-400.0,0.00024676,2]
[383603097,1757023833279,-400.0,0.00024676,2]
[383603099,1757023833291,-400.0,0.00024676,2]
[383603101,1757023833303,-400.0,0.00024676,2]
[383603103,1757023833313,-261.95,0.00024676,2]
[383603105,1757023833326,-400.0,0.00024676,2]
[383603108,1757023833337,-400.0,0.00024676,2]
[383603110,1757023833348,-400.0,0.00024676,2]
[383603112,1757023833358,-400.0,0.00024676,2]
[383603114,1757023833369,-400.0,0.00024676,2]
[383603116,1757023833379,-400.0,0.00024676,2]
[383603118,1757023833389,-300.0,0.00024676,2]
[383603120,1757023833400,-400.0,0.00024676,2]
[383603122,1757023833412,-435.92,0.00024676,2]
[383603123,1757023833424,-400.0,0.00024676,2]
[383603124,1757023833435,-400.0,0.00024676,2]
[383603125,1757023833447,-400.0,0.00024676,2]
[383603126,1757023833457,-400.0,0.00024676,2]
[383603127,1757023833468,-508.93,0.00024676,2]
[383603128,1757023833479,-400.0,0.00024676,2]
[383603129,1757023833489,-400.0,0.00024676,2]
[383603130,1757023833500,-400.0,0.00024676,2]
[383603131,1757023833510,-400.0,0.00024676,2]
[383603132,1757023833520,-400.0,0.00024676,2]
[383603133,1757023833531,-400.0,0.00024676,2]
[383603134,1757023833542,-400.0,0.00024676,2]
[383603136,1757023833552,-400.0,0.00024676,2]
[383603138,1757023833562,-400.0,0.00024676,2]
[383603140,1757023833573,-389.65,0.00024676,2]
[383603142,1757023833583,-400.0,0.00024676,2]
[383603144,1757023833594,-400.0,0.00024676,2]
[383603146,1757023833604,-176.85,0.00024676,2]
[383603148,1757023833614,-400.0,0.00024676,2]
[383603150,1757023833625,-402.15,0.00024676,2]
[383603152,1757023833635,-400.0,0.00024676,2]
[383603154,1757023833646,-400.0,0.00024676,2]
[383603156,1757023833656,-400.0,0.00024676,2]
[383603158,1757023833667,-165.2,0.00024676,2]
[383603160,1757023833677,-400.0,0.00024676,2]
[383603162,1757023833687,-400.0,0.00024676,2]
[383603164,1757023833698,-400.0,0.00024676,2]
[383603167,1757023833708,-400.0,0.00024676,2]
[383603169,1757023833719,-400.0,0.00024676,2]
[383603171,1757023833729,-400.0,0.00024676,2]
[383603173,1757023833740,-400.0,0.00024676,2]
[383603175,1757023833750,-400.0,0.00024676,2]
[383603177,1757023833760,-413.28,0.00024676,2]
[383603179,1757023833770,-400.0,0.00024676,2]
[383603181,1757023833780,-400.0,0.00024676,2]
[383603183,1757023833791,-400.0,0.00024676,2]
[383603185,1757023833802,-400.0,0.00024676,2]
[383603187,1757023833812,-508.56,0.00024676,2]
[383603189,1757023833823,-400.0,0.00024676,2]
[383603192,1757023833834,-265.32,0.00024676,2]
[383603194,1757023833844,-400.0,0.00024676,2]
[383603196,1757023833854,-400.0,0.00024676,2]
[383603198,1757023833865,-400.0,0.00024676,2]
[383603200,1757023833875,-400.0,0.00024676,2]
[383603202,1757023833885,-254.4,0.00024676,2]
[383603204,1757023833895,-255.36,0.00024676,2]
[383603206,1757023833905,-400.0,0.00024676,2]
[383603208,1757023833915,-400.0,0.00024676,2]
[383603210,1757023833927,-400.0,0.00024676,2]
[383603213,1757023833937,-400.0,0.00024676,2]
[383603215,1757023833947,-400.0,0.00024676,2]
[383603217,1757023833957,-400.0,0.00024676,2]
[383603219,1757023833967,-400.0,0.00024676,2]
[383603221,1757023833977,-916.66,0.00024676,2]
[383603223,1757023833987,-400.0,0.00024676,2]
[383603225,1757023833997,-400.0,0.00024676,2]
[383603227,1757023834007,-400.0,0.00024676,2]
[383603229,1757023834018,-287.2,0.00024676,2]
[383603231,1757023834028,-400.0,0.00024676,2]
[383603233,1757023834038,-400.0,0.00024676,2]
[383603235,1757023834048,-400.0,0.00024676,2]
[383603238,1757023834058,-400.0,0.00024676,2]
[383603240,1757023834069,-400.0,0.00024676,2]
[383603242,1757023834079,-400.0,0.00024676,2]
[383603244,1757023834090,-400.0,0.00024676,2]
[383603246,1757023834100,-400.0,0.00024676,2]
[383603248,1757023834110,-400.0,0.00024676,2]
[383603250,1757023834120,-400.0,0.00024676,2]
[383603252,1757023834130,-400.0,0.00024676,2]
[383603254,1757023834140,-400.0,0.00024676,2]
[383603256,1757023834149,-400.0,0.00024676,2]
[383603259,1757023834160,-342.0799997,0.00024677,2]
[383603261,1757023834169,-150.0,0.000247,2]
[383603263,1757023834180,-516.50879437,0.00024798,2]
[383603265,1757023834189,-6508.05133305,0.0002485,2]
[383603267,1757023834200,-5316.51739199,0.000249,2]
[383603269,1757023834210,-155.05,0.00024907,2]
[383603271,1757023834220,-400.0,0.0002495,2]
[383603273,1757023834230,-400.0,0.0002495,2]
[383603275,1757023834240,-400.0,0.0002495,2]
[383603277,1757023834250,-493.36,0.0002495,2]
[383603280,1757023834262,-363.07,0.0002495,2]
[383603282,1757023834272,-400.0,0.0002495,2]
[383603284,1757023834282,-400.0,0.0002495,2]
[383603286,1757023834293,-400.0,0.0002495,2]
[383603288,1757023834303,-400.0,0.0002495,2]
[383603290,1757023834313,-400.0,0.0002495,2]
[383603292,1757023834323,-400.0,0.0002495,2]
[383603294,1757023834333,-400.0,0.0002495,2]
[383603296,1757023834344,-400.0,0.0002495,2]
[383603298,1757023834354,-400.0,0.0002495,2]
[383603300,1757023834365,-400.0,0.0002495,2]
[383603302,1757023834375,-400.0,0.0002495,2]
[383603304,1757023834384,-400.0,0.0002495,2]
[383603306,1757023834394,-400.0,0.0002495,2]
[383603309,1757023834405,-400.0,0.0002495,2]
[383603311,1757023834415,-342.84,0.0002495,2]
[383603313,1757023834424,-400.0,0.0002495,2]
[383603315,1757023834435,-378.76,0.0002495,2]
[383603317,1757023834446,-414.36,0.0002495,2]
[383603319,1757023834456,-400.0,0.0002495,2]
[383603321,1757023834466,-400.0,0.0002495,2]
[383603323,1757023834476,-400.0,0.0002495,2]
[383603325,1757023834486,-361.52,0.0002495,2]
[383603328,1757023834496,-400.0,0.0002495,2]
[383603330,1757023834507,-400.0,0.0002495,2]
[383603332,1757023834517,-187.25,0.0002495,2]
[383603334,1757023834527,-400.0,0.0002495,2]
[383603336,1757023834538,-240.88,0.0002495,2]
[383603338,1757023834548,-400.0,0.0002495,2]
[383603340,1757023834559,-400.0,0.0002495,2]
[383603342,1757023834569,-185.12,0.0002495,2]
[383603344,1757023834580,-408.24,0.0002495,2]
[383603346,1757023834590,-400.0,0.0002495,2]
[383603348,1757023834600,-400.0,0.0002495,2]
[383603351,1757023834610,-400.0,0.0002495,2]
[383603353,1757023834621,-400.0,0.0002495,2]
[383603355,1757023834632,-400.0,0.0002495,2]
[383603357,1757023834642,-400.0,0.0002495,2]
[383603359,1757023834653,-400.0,0.0002495,2]
[383603361,1757023834663,-300.0,0.0002495,2]
[383603363,1757023834673,-400.0,0.0002495,2]
[383603365,1757023834683,-210.16328063,0.0002495,2]
[383603415,1757023835146,-287.48671937,0.0002495,2]
[383603418,1757023835156,-400.0,0.0002495,2]
[383603419,1757023835165,-275.89747042,0.0002495,2]
[383603422,1757023835177,-29.62252958,0.0002495,2]
[383603424,1757023835186,-312.45746992,0.0002495,2]
[383603433,1757023838138,-167.4100543,0.0002466,2]
[383603434,1757023838148,-87.54253008,0.0002495,2]
[383603435,1757023838158,-400.0,0.0002495,2]
[383603436,1757023838167,-400.0,0.0002495,2]
[383603437,1757023838177,-400.0,0.0002495,2]
[383603438,1757023838187,-400.0,0.0002495,2]
[383603439,1757023838196,-400.0,0.0002495,2]
[383603440,1757023838206,-249.6,0.0002495,2]
[383603441,1757023838215,-400.0,0.0002495,2]
[383603442,1757023838224,-400.0,0.0002495,2]
[383603443,1757023838233,-400.0,0.0002495,2]
[383603444,1757023838243,-400.0,0.0002495,2]
[383603445,1757023838252,-400.0,0.0002495,2]
[383603446,1757023838264,-400.0,0.0002495,2]
[383603447,1757023838274,-400.0,0.0002495,2]
[383603448,1757023838283,-385.44741562,0.0002495,2]
[383603449,1757023838303,-108.85258438,0.0002495,2]
[383603450,1757023838312,-400.0,0.0002495,2]
[383603451,1757023838321,-400.0,0.0002495,2]
[383603452,1757023838332,-400.0,0.0002495,2]
[383603453,1757023838343,-381.51482316,0.0002495,2]
[383603454,1757023838358,-18.48517684,0.0002495,2]
[383603455,1757023838367,-189.68,0.0002495,2]
[383603456,1757023838376,-400.0,0.0002495,2]
[383603457,1757023838385,-27.9098605,0.0002495,2]
[383603458,1757023838473,-372.0901395,0.0002495,2]
[383603460,1757023838482,-400.0,0.0002495,2]
[383603462,1757023838491,-285.08,0.0002495,2]
[383603464,1757023838500,-400.0,0.0002495,2]
[383603466,1757023838510,-155.8,0.0002495,2]
[383603468,1757023838520,-400.0,0.0002495,2]
[383603470,1757023838529,-400.0,0.0002495,2]
[383603472,1757023838538,-400.0,0.0002495,2]
[383603474,1757023838547,-400.0,0.0002495,2]
[383603476,1757023838556,-400.0,0.0002495,2]
[383603478,1757023838565,-400.0,0.0002495,2]
[383603480,1757023838574,-321.72986046,0.0002495,2]
[383603510,1757023840296,-187.55013954,0.0002495,2]
[383603511,1757023840309,-400.0,0.0002495,2]
[383603512,1757023840320,-400.0,0.0002495,2]
[383603513,1757023840330,-400.0,0.0002495,2]
[383603514,1757023840341,-278.0,0.0002495,2]
[383603515,1757023840353,-363.04,0.0002495,2]
[383603516,1757023840375,-707.82255002,0.0002495,2]
[383603517,1757023840390,-208.83744998,0.0002495,2]
[383603518,1757023840400,-400.0,0.0002495,2]
[383603519,1757023840409,-400.0,0.0002495,2]
[383603520,1757023840419,-400.0,0.0002495,2]
[383603521,1757023840429,-400.0,0.0002495,2]
[383603522,1757023840439,-382.56,0.0002495,2]
[383603523,1757023840449,-400.0,0.0002495,2]
[383603524,1757023840460,-150.32,0.0002495,2]
[383603525,1757023840470,-400.0,0.0002495,2]
[383603527,1757023840479,-400.0,0.0002495,2]
[383603529,1757023840489,-400.0,0.0002495,2]
[383603532,1757023840498,-400.0,0.0002495,2]
[383603533,1757023840507,-258.25,0.0002495,2]
[383603534,1757023840517,-210.84,0.0002495,2]
[383603535,1757023840527,-474.68,0.0002495,2]
[383603536,1757023840537,-150.2,0.0002495,2]
[383603537,1757023840547,-400.0,0.0002495,2]
[383603538,1757023840556,-226.14,0.00024987,2]
[383603539,1757023840566,-2453.45,0.00025,7]
[383603540,1757023840577,-251.37698276,0.0002511,2]
[383603541,1757023840586,-156.54035492,0.00025122,2]
[383603542,1757023840595,-167.3,0.00025213,2]
[383603543,1757023840605,-500.0,0.00025221,2]
[383603544,1757023840615,-406.73986131,0.00025221,2]
[383603545,1757023840624,-540.59,0.00025221,2]
[383603547,1757023840634,-400.0,0.00025221,2]
[383603549,1757023840643,-400.0,0.00025221,2]
[383603551,1757023840653,-924.02,0.00025221,2]
[383603553,1757023840663,-400.0,0.00025221,2]
[383603555,1757023840673,-517.95,0.00025221,2]
[383603557,1757023840683,-175.4,0.00025221,2]
[383603559,1757023840694,-223.22,0.00025221,2]
[383603561,1757023840703,-400.0,0.00025221,2]
[383603563,1757023840713,-400.0,0.00025221,2]
[383603565,1757023840723,-400.0,0.00025221,2]
[383603567,1757023840732,-400.0,0.00025221,2]
[383603569,1757023840742,-400.0,0.00025221,2]
[383603571,1757023840751,-476.81,0.00025221,2]
[383603573,1757023840761,-378.92,0.00025221,2]
[383603575,1757023840770,-400.0,0.00025221,2]
[383603577,1757023840780,-400.0,0.00025221,2]
[383603579,1757023840789,-400.0,0.00025221,2]
[383603581,1757023840799,-359.72,0.00025221,2]
[383603583,1757023840809,-400.0,0.00025221,2]
[383603585,1757023840819,-400.0,0.00025221,2]
[383603587,1757023840830,-400.0,0.00025221,2]
[383603589,1757023840839,-400.0,0.00025221,2]
[383603590,1757023840848,-283.04,0.00025221,2]
[383603591,1757023840858,-935.66,0.00025221,2]
[383603592,1757023840867,-257.45,0.00025222,2]
[383603593,1757023840876,-400.0,0.00025222,2]
[383603594,1757023840884,-400.0,0.00025222,2]
[383603595,1757023840894,-400.0,0.00025222,2]
[383603596,1757023840903,-400.0,0.00025222,2]
[383603597,1757023840912,-216.16,0.00025222,2]
[383603598,1757023840921,-400.0,0.00025222,2]
[383603599,1757023840931,-376.21854134,0.00025222,2]
[383603600,1757023840943,-23.78145866,0.00025222,2]
[383603601,1757023840953,-400.0,0.00025222,2]
[383603602,1757023840962,-400.0,0.00025222,2]
[383603603,1757023840972,-400.0,0.00025222,2]
[383603604,1757023840981,-400.0,0.00025222,2]
[383603605,1757023840991,-400.0,0.00025222,2]
[383603606,1757023841000,-472.76,0.00025222,2]
[383603607,1757023841009,-400.0,0.00025222,2]
[383603608,1757023841018,-400.0,0.00025222,2]
[383603609,1757023841027,-400.0,0.00025222,2]
[383603610,1757023841036,-400.0,0.00025222,2]
[383603611,1757023841046,-400.0,0.00025222,2]
[383603612,1757023841055,-400.0,0.00025222,2]
[383603613,1757023841065,-199.57363575,0.00025222,2]
[383603614,1757023841075,-500.0,0.00025222,2]
[383603615,1757023841087,-400.0,0.00025222,2]
[383603616,1757023841096,-400.0,0.00025222,2]
[383603617,1757023841106,-400.0,0.00025222,2]
[383603618,1757023841115,-400.0,0.00025222,2]
[383603619,1757023841125,-400.0,0.00025222,2]
[383603620,1757023841135,-446.48,0.00025222,2]
[383603621,1757023841144,-400.0,0.00025222,2]
[383603622,1757023841154,-400.0,0.00025222,2]
[383603623,1757023841163,-400.0,0.00025222,2]
[383603624,1757023841173,-500.0,0.00025222,2]
[383603625,1757023841182,-500.0,0.00025222,2]
[383603626,1757023841192,-400.0,0.00025222,2]
[383603627,1757023841202,-400.0,0.00025222,2]
[383603628,1757023841211,-400.0,0.00025222,2]